[Event "1st Serbian League 2022"]
[Site "Vrnjacka Banja"]
[Date "2022.09.21"]
[Round "2.19"]
[White "Indjic, Aleksandar"]
[Black "Demchenko, Anton"]
[Result "1-0"]
[ECO "D23"]
[WhiteElo "2628"]
[BlackElo "2645"]
[Annotator "TA"]
[PlyCount "69"]
[EventDate "2022.09.20"]
[EventType "team-tourn"]
[EventCountry "SRB"]
[SourceTitle "playchess.com"]
[Source "ChessBase"]
[SourceQuality "1"]
[TimeControl "40/5400+30:1800+30"]

{[%evp 9,69,24,37,27,35,31,22,23,45,44,57,13,15,9,16,16,50,47,76,76,87,93,94,91,91,83,95,102,107,106,109,112,216,217,213,212,199,117,125,91,83,91,78,92,103,78,79,86,222,236,229,229,206,222,226,203,236,219,739,732,616,583]} 1. d4 {[%emt 0:00:18]} d5 {[%emt 0:00:18]} 2. Nf3 {[%emt 0:00:16]} Nf6 {[%emt 0:00:09]} 3. c4 {[%emt 0:00:07]} dxc4 {[%emt 0:00:11]} 4. Qa4+ {[%emt 0:00:06]} Qd7 {[%emt 0:05:44]} 5. Qxc4 {[%emt 0:01:22]} Qc6 {[%emt 0:00:04]} 6. Nbd2 {[%emt 0:00:40][%cal Oe2e4] D23: Queen's Gambit Accepted: 3 Nf3 Nf6 sidelines.} Bf5 {[%emt 0:07:11] [#] Against e4} 7. a3 $146 {[%emt 0:05:46]} ({Predecessor:} 7. e3 Qxc4 8. Bxc4 e6 9. a3 Nbd7 10. O-O h6 11. Be2 c5 12. dxc5 Bxc5 13. b4 {½-½ (76) Nguyen,H (2477)-Alavi Moghaddam,S (2467) Tabriz 2014}) 7... e6 {[%emt 0:09:14]} 8. b4 {[%emt 0:05:54][%cal Bb2b4,Bb4b5][%mdl 32] The position is equal.} Bd6 {[%emt 0:08:22]} 9. Bb2 {[%emt 0:02:49]} O-O {[%emt 0:06:10]} 10. e3 {[%emt 0:05:18]} a5 {[%emt 0:08:16] Strongly threatening ...axb4.} 11. b5 {[%emt 0:02:42]} Qxc4 {[%emt 0:02:44]} 12. Nxc4 {[%emt 0:00:08]} Nbd7 {[%emt 0:00:05]} 13. Rc1 {[%emt 0:01:58]} Be7 {[%emt 0:06:10]} 14. Nfe5 $1 {[%emt 0:02:10] Prevents c6.} Rfc8 {[%emt 0:01:17]} 15. f3 $1 {[%emt 0:00:44]} h6 {[%emt 0:00:26]} 16. e4 {[%emt 0:00:20]} Bh7 {[%emt 0:00:05]} 17. Be2 {[%emt 0:02:28]} Nxe5 {[%emt 0:05:56]} 18. Nxe5 {[%emt 0:00:15]} (18. dxe5 $6 Nd7 $11) 18... Kf8 {[%emt 0:00:23]} 19. Kf2 {[%emt 0:00:26]} Ke8 {[%emt 0:01:20]} 20. Rhd1 {[%emt 0:01:27]} Nd7 {[%emt 0:04:53] [#]} (20... a4 $16 21. Rc2 Bd6) 21. Nxd7 $1 $18 {[%emt 0:02:22]} Kxd7 {[%emt 0:00:01]} 22. d5 {[%emt 0:00:10] Inhibits c6.} e5 {[%emt 0:02:00]} 23. Bxe5 {[%emt 0:04:08]} ({Better is} 23. a4 $18) 23... Bxa3 $16 {[%emt 0:00:28]} 24. Rc4 {[%emt 0:13:57]} ({Much worse is} 24. Bxg7 $6 Bxc1 25. Rxc1 a4 $11) 24... f6 {[%emt 0:01:58]} 25. Bc3 {[%emt 0:00:13] White has more active pieces.} Bd6 {[%emt 0:00:59]} 26. f4 {[%emt 0:00:52] Bg4+ is the strong threat.} Re8 {[%emt 0:01:11]} 27. Bg4+ {[%emt 0:00:16]} Kd8 {[%emt 0:00:10] [#]} 28. Kf3 {[%emt 0:00:19]} Rxe4 {[%emt 0:02:55] This costs Black the game.} 29. Rxe4 $18 {[%emt 0:00:49]} f5 {[%emt 0:00:05] [#]} 30. Bxf5 {[%emt 0:04:14]} Bxf5 {[%emt 0:00:02]} 31. Re2 {[%emt 0:00:16]} ({Weaker is} 31. Bxg7 h5 32. Rd2 Bxe4+ 33. Kxe4 a4 $11) 31... a4 {[%emt 0:06:36]} 32. Bxg7 {[%emt 0:02:40]} a3 {[%emt 0:03:58]} 33. g4 {[%emt 0:00:50]} Bd7 {[%emt 0:00:06]} (33... Bh7 34. Ra2 (34. Bxh6 a2 $16) 34... Ra4) 34. Bf6+ {[%emt 0:00:12]} Kc8 {[%emt 0:00:01]} 35. Rde1 {[%emt 0:00:12] Weighted Error Value: White=0.09 (flawless) /Black=0.18 (very precise)} 1-0

[Event "1st Serbian League 2022"]
[Site "Vrnjacka Banja"]
[Date "2022.09.21"]
[Round "2.20"]
[White "Basso, Pier Luigi"]
[Black "Ivanisevic, Ivan"]
[Result "1/2-1/2"]
[ECO "A70"]
[WhiteElo "2528"]
[BlackElo "2547"]
[Annotator "TA"]
[PlyCount "36"]
[EventDate "2022.09.20"]
[EventType "team-tourn"]
[EventCountry "SRB"]
[SourceTitle "playchess.com"]
[Source "ChessBase"]
[SourceQuality "1"]
[TimeControl "40/5400+30:1800+30"]

{[%evp 18,23,47,41,69,36,47,50]} 1. d4 {[%emt 0:03:57]} Nf6 {[%emt 0:00:05]} 2. c4 {[%emt 0:00:04]} c5 {[%emt 0:00:05]} 3. d5 {[%emt 0:00:06]} e6 {[%emt 0:00:04]} 4. Nc3 {[%emt 0:00:04]} exd5 {[%emt 0:00:07]} 5. cxd5 {[%emt 0:00:04]} d6 {[%emt 0:00:08]} 6. e4 {[%emt 0:00:05]} g6 {[%emt 0:00:05]} 7. Bd3 {[%emt 0:00:07]} Bg7 {[%emt 0:00:15]} 8. h3 {[%emt 0:00:07]} O-O {[%emt 0:00:12]} 9. Nf3 {[%emt 0:00:03]} Re8 {[%emt 0:04:23]} 10. O-O {[%emt 0:00:11] White is slightly better.} Nbd7 {[%emt 0:00:03][%cal Oc5c4] A70: Modern Benoni: 6 e4 g6 7 Nf3.} 11. Re1 {[%emt 0:02:29]} Ne5 {[%emt 0:01:33] now supersedes 11...a6.} 12. Nxe5 {[%emt 0:05:03] [#]  Weighted Error Value: White=0.00 (flawless) /Black=0.14 (very precise)} {Predecessor:} Rxe5 $146 13. f4 Re8 14. Qf3 Nd7 15. Be3 a6 16. a4 Rb8 17. Bf2 Qa5 18. Bc2 Qb4 {½-½ (46) Navara,D (2697)-Pantsulaia,L (2553) Tornelo INT 2020} 1/2-1/2

[Event "1st Serbian League 2022"]
[Site "Vrnjacka Banja"]
[Date "2022.09.21"]
[Round "2.21"]
[White "Perunovic, Milos"]
[Black "Atalik, Suat"]
[Result "1/2-1/2"]
[ECO "B31"]
[WhiteElo "2542"]
[BlackElo "2436"]
[Annotator "TA"]
[PlyCount "93"]
[EventDate "2022.09.20"]
[EventType "team-tourn"]
[EventCountry "SRB"]
[SourceTitle "playchess.com"]
[Source "ChessBase"]
[SourceQuality "1"]
[TimeControl "40/5400+30:1800+30"]

{[%evp 21,93,0,0,-2,38,25,34,26,32,22,18,18,118,118,129,123,129,129,129,125,112,106,110,114,108,120,109,72,68,0,22,22,22,22,22,22,22,22,29,21,70,70,70,70,70,70,70,70,70,70,102,75,102,102,102,102,102,70,70,70,70,70,70,70,70,70,70,8,8,8,8,8,8,8]} 1. e4 {[%emt 0:00:17]} c5 {[%emt 0:00:15]} 2. Nf3 {[%emt 0:00:17]} Nc6 {[%emt 0:00:22]} 3. Bb5 {[%emt 0:03:00]} g6 {[%emt 0:01:16]} 4. O-O {[%emt 0:00:22]} Bg7 {[%emt 0:00:08]} 5. c3 {[%emt 0:01:12]} Nf6 {[%emt 0:00:32]} 6. e5 {[%emt 0:00:07]} Nd5 {[%emt 0:00:24]} 7. d4 {[%emt 0:00:07]} cxd4 {[%emt 0:00:54]} 8. cxd4 {[%emt 0:00:06]} d6 {[%emt 0:06:27]} 9. Nc3 {[%emt 0:06:21]} Nxc3 {[%emt 0:10:05]} 10. bxc3 {[%emt 0:00:08]} O-O {[%emt 0:01:01]} 11. Re1 {[%emt 0:00:28]} Bg4 {[%emt 0:03:16]} 12. exd6 {[%emt 0:08:52] B31: Sicilian: 2...Nc6 3 Bb5 g6.} exd6 {[%emt 0:00:41]} 13. h3 {[%emt 0:01:08]} Bxf3 {[%emt 0:01:42]} 14. Qxf3 {[%emt 0:00:07] White is slightly better.} Qa5 $1 {[%emt 0:00:18]} 15. Bxc6 {[%emt 0:07:04]} bxc6 {[%emt 0:00:07]} 16. Bf4 {[%emt 0:00:05]} ({But not} 16. Qxc6 Bxd4 17. Bd2 Be5 $11) 16... d5 {[%emt 0:05:56]} (16... Qc7 $11) 17. Re7 $16 {[%emt 0:09:58]} Rae8 {[%emt 0:07:06] [#]} 18. Rae1 $36 {[%emt 0:11:44][%mdl 2048] Keeping Black busy. White is much more active.} Rxe7 {[%emt 0:01:22]} 19. Rxe7 {[%emt 0:00:17]} Qxa2 {[%emt 0:00:29]} 20. Bd6 {[%emt 0:00:15] Strongly threatening Kh2.} Qb1+ {[%emt 0:00:21]} 21. Kh2 {[%emt 0:00:05]} Qf5 {[%emt 0:00:15]} 22. Qxf5 {[%emt 0:00:06]} ({Much worse is} 22. Rxa7 $6 Qxf3 23. gxf3 Rd8 $11) 22... gxf5 {[%emt 0:00:05]} 23. Rxa7 {[%emt 0:00:05][%mdl 4096] Endgame KRB-KRB} Rd8 {[%emt 0:00:41] [#]} 24. Bb4 $146 {[%emt 0:21:29]} ({Predecessor:} 24. Bf4 Re8 25. Kg3 Re6 26. Ra8+ Bf8 27. Kf3 Kg7 28. Be5+ f6 29. Bg3 Re1 30. Rc8 Rc1 31. Rxc6 Kg6 32. Be5 {1-0 (32) Raidaru,M-Narva,J Estonia 2001}) 24... Rb8 {[%emt 0:27:58][%cal Og7d4]} 25. Rd7 {[%emt 0:02:17]} ({White should play} 25. Bc5 $14) 25... Bf6 {[%emt 0:00:21]} 26. g3 {[%emt 0:08:48]} h5 {[%emt 0:08:05]} 27. Kg2 {[%emt 0:00:13]} Kg7 {[%emt 0:05:04]} 28. Rc7 {[%emt 0:10:33]} Bxd4 $1 {[%emt 0:01:47]} 29. Rxc6 {[%emt 0:00:15]} Bf6 {[%emt 0:01:26]} 30. Bd6 {[%emt 0:00:48]} Rb3 {[%emt 0:08:45] [#]} (30... Re8 $11) 31. Bf8+ $1 $14 {[%emt 0:02:14]} Kxf8 {[%emt 0:00:06]} 32. Rxf6 {[%emt 0:00:04] KR-KR} h4 {[%emt 0:00:07]} 33. Rxf5 {[%emt 0:00:27] Threatens to win with g4.} hxg3 {[%emt 0:00:05]} 34. fxg3 {[%emt 0:00:06]} Rxc3 {[%emt 0:00:14]} 35. Rxd5 {[%emt 0:00:08]} Kg7 {[%emt 0:00:25]} 36. Rg5+ {[%emt 0:00:08]} Kh6 {[%emt 0:00:41]} 37. h4 {[%emt 0:00:23]} Ra3 {[%emt 0:02:50]} 38. Kh3 {[%emt 0:01:14]} Ra4 {[%emt 0:00:28]} 39. Rg4 {[%emt 0:00:09]} Ra5 {[%emt 0:00:12]} 40. Rf4 {[%emt 0:00:25]} f5 {[%emt 0:01:41]} 41. Rd4 {[%emt 0:30:38]} Ra2 {[%emt 0:33:49]} 42. Rd6+ {[%emt 0:00:25]} Kh5 {[%emt 0:01:45]} 43. Rf6 {[%emt 0:00:47]} Rf2 {[%emt 0:00:34]} 44. Rf8 {[%emt 0:00:46]} (44. Ra6 $14) 44... Kg6 $11 {[%emt 0:00:14] The position is equal.} 45. Rg8+ {[%emt 0:00:08]} Kh7 {[%emt 0:00:00]} 46. Ra8 {[%emt 0:00:00]} f4 $1 {[%emt 0:00:00]} 47. gxf4 {[%emt 0:00:00] Weighted Error Value: White=0.09 (flawless) /Black=0.09 (flawless)} 1/2-1/2

[Event "1st Serbian League 2022"]
[Site "Vrnjacka Banja"]
[Date "2022.09.21"]
[Round "2.22"]
[White "Milosevic, Milos"]
[Black "Miljkovic, Miroslav D"]
[Result "1-0"]
[ECO "D00"]
[WhiteElo "2379"]
[BlackElo "2456"]
[Annotator "TA"]
[PlyCount "43"]
[EventDate "2022.09.20"]
[EventType "team-tourn"]
[EventCountry "SRB"]
[SourceTitle "playchess.com"]
[Source "ChessBase"]
[SourceQuality "1"]
[TimeControl "40/5400+30:1800+30"]

{[%evp 9,43,22,36,40,39,32,67,39,42,29,63,54,38,17,141,136,135,134,137,140,142,106,131,121,199,228,191,200,514,481,520,517,781,758,673,670]} 1. d4 {[%emt 0:00:03]} d5 {[%emt 0:00:54]} 2. Nc3 {[%emt 0:00:08]} Nf6 {[%emt 0:01:07]} 3. Bf4 {[%emt 0:00:05]} a6 {[%emt 0:01:55]} 4. e3 {[%emt 0:00:04][%cal Be2e3,Be3e4][%mdl 32]} g6 {[%emt 0:00:26]} 5. h4 {[%emt 0:01:06]} Nc6 {[%emt 0:01:17] [#]} 6. Be2 $146 {[%emt 0:01:07] D00: 1 d4 d5: Unusual lines.} ({Predecessor:} 6. h5 Nxh5 7. Rxh5 gxh5 8. Qxh5 Be6 9. Qh2 b5 10. O-O-O Qd7 11. Bxc7 Rc8 12. Bb6 {½-½ (56) Prior,S (2037)-Crismann,A (1821) London 2017}) 6... h5 {[%emt 0:00:40]} 7. Nf3 {[%emt 0:00:16]} Ng4 {[%emt 0:01:33]} 8. e4 {[%emt 0:03:56] White is slightly better.} e6 {[%emt 0:04:11]} 9. e5 {[%emt 0:04:13]} Ne7 {[%emt 0:02:03]} 10. Ng5 {[%emt 0:14:32]} Nh6 {[%emt 0:05:15]} 11. g4 {[%emt 0:01:39]} Nxg4 {[%emt 0:00:44]} (11... hxg4 $11 {remains equal.} 12. Qd2 (12. Bxg4 Nef5 $11) 12... Bg7) 12. Bxg4 $16 {[%emt 0:00:06]} hxg4 {[%emt 0:00:06]} 13. Qxg4 {[%emt 0:00:03]} Nf5 {[%emt 0:22:01]} 14. h5 $1 $36 {[%emt 0:01:41][%mdl 2048] Keeping Black busy.} Qe7 {[%emt 0:10:55]} (14... Nxd4 $2 15. O-O-O f5 16. Qg2 gxh5 17. Rxd4 $18) 15. O-O-O {[%emt 0:00:29] Hoping for hxg6. White is more active.} gxh5 {[%emt 0:07:46]} 16. Rxh5 {[%emt 0:00:06]} Rxh5 {[%emt 0:05:22]} (16... Bh6 $16 {keeps fighting.}) 17. Qxh5 $18 {[%emt 0:00:06] aiming for Nh7.} Bh6 {[%emt 0:00:29] [#]} 18. Ne2 $1 {[%emt 0:04:01]} Bd7 $2 {[%emt 0:09:21] [#]} (18... Bxg5 {is tougher.} 19. Bxg5 Qf8) 19. Ng3 $1 {[%emt 0:00:20] White is clearly winning.} Nxg3 {[%emt 0:03:24]} 20. fxg3 {[%emt 0:00:11]} Bxg5 {[%emt 0:03:21]} (20... O-O-O $142 21. Qxh6 Re8) 21. Bxg5 {[%emt 0:00:04]} Qf8 {[%emt 0:00:37]} 22. Qh7 {[%emt 0:01:33] Weighted Error Value: White=0.06 (flawless) /Black=0.48} 1-0

[Event "1st Serbian League 2022"]
[Site "Vrnjacka Banja"]
[Date "2022.09.21"]
[Round "2.23"]
[White "Kosic, Dragan"]
[Black "Markovic, Miroslav"]
[Result "1/2-1/2"]
[ECO "A49"]
[WhiteElo "2399"]
[BlackElo "2275"]
[Annotator "TA"]
[PlyCount "37"]
[EventDate "2022.09.20"]
[EventType "team-tourn"]
[EventCountry "SRB"]
[SourceTitle "playchess.com"]
[Source "ChessBase"]
[SourceQuality "1"]
[TimeControl "40/5400+30:1800+30"]

{[%evp 10,37,29,21,16,1,4,0,13,0,18,0,0,0,0,0,0,0,2,0,0,0,0,0,1,0,0,-16,0,4]} 1. d4 {[%emt 0:00:09]} Nf6 {[%emt 0:00:21]} 2. Nf3 {[%emt 0:00:40]} g6 {[%emt 0:01:07]} 3. g3 {[%emt 0:02:04]} Bg7 {[%emt 0:02:10]} 4. Bg2 {[%emt 0:01:16]} O-O {[%emt 0:00:54]} 5. O-O {[%emt 0:01:24]} d6 {[%emt 0:01:13]} 6. Nc3 {[%emt 0:05:36]} d5 {[%emt 0:09:38] The position is equal. A49: 1 d4 Nf6 2 Nf3 g6 3 g3: Anti-King's Indian systems.} 7. Be3 {[%emt 0:04:33]} c6 {[%emt 0:02:41]} 8. Qd2 {[%emt 0:09:20]} Bf5 {[%emt 0:05:04]} 9. Nh4 {[%emt 0:00:16] [#]} Be6 $146 {[%emt 0:00:22]} ({Predecessor:} 9... Qc8 10. Nxf5 Qxf5 11. Bf4 Nbd7 12. Rae1 Rad8 13. e4 dxe4 14. Nxe4 Nb6 15. Bc7 Rd7 16. Bxb6 axb6 17. c3 Qa5 18. b4 Qa3 19. Nxf6+ Bxf6 20. Qc2 e6 {½-½ (20) Faibisovich,V (2400)-Nikolaev,N (2308) St Petersburg 1999}) 10. Rad1 {[%emt 0:00:28]} b5 {[%emt 0:01:17]} 11. Bh6 {[%emt 0:00:36]} Nbd7 {[%emt 0:01:39]} 12. Bxg7 {[%emt 0:02:52]} (12. Nf3 {feels hotter.} Ne4 13. Nxe4 dxe4 14. Ng5) 12... Kxg7 {[%emt 0:00:06]} 13. b3 {[%emt 0:00:08]} Rc8 {[%emt 0:00:43]} 14. Rfe1 {[%emt 0:00:56]} b4 {[%emt 0:00:34]} 15. Na4 {[%emt 0:00:16]} c5 {[%emt 0:00:09]} 16. c4 {[%emt 0:01:22]} bxc3 {[%emt 0:00:49]} (16... dxc4 $5 {[%cal Rc4c3]} 17. d5 c3 $11) 17. Qxc3 {[%emt 0:00:45][%cal Rd4c5]} cxd4 {[%emt 0:00:33]} 18. Qxd4 {[%emt 0:00:08]} Qc7 {[%emt 0:00:08]} 19. Qb2 {[%emt 0:00:39] A balanced but interesting game.  Weighted Error Value: White=0.06 (flawless) /Black=0.03 (flawless)} 1/2-1/2

[Event "1st Serbian League 2022"]
[Site "Vrnjacka Banja"]
[Date "2022.09.21"]
[Round "2.24"]
[White "Vratonjic, Slobo"]
[Black "Lazic, Miroljub"]
[Result "1/2-1/2"]
[ECO "C54"]
[WhiteElo "2253"]
[BlackElo "2300"]
[Annotator "TA"]
[PlyCount "47"]
[EventDate "2022.09.20"]
[EventType "team-tourn"]
[EventCountry "SRB"]
[SourceTitle "playchess.com"]
[Source "ChessBase"]
[SourceQuality "1"]
[TimeControl "40/5400+30:1800+30"]

{[%evp 20,22,30,26,29]} 1. e4 {[%emt 0:00:10]} e5 {[%emt 0:00:50]} 2. Nf3 {[%emt 0:00:54]} Nc6 {[%emt 0:00:25]} 3. Bc4 {[%emt 0:00:27]} Bc5 {[%emt 0:00:56]} 4. O-O {[%emt 0:01:42]} Nf6 {[%emt 0:02:37]} 5. d3 {[%emt 0:01:47]} a6 {[%emt 0:01:47]} 6. c3 {[%emt 0:04:39]} Ba7 {[%emt 0:01:59]} 7. h3 {[%emt 0:02:11]} d6 {[%emt 0:00:58]} 8. Bb3 {[%emt 0:01:01]} O-O {[%emt 0:03:47]} 9. Re1 {[%emt 0:07:17]} Ne7 {[%emt 0:04:01]} 10. Nbd2 {[%emt 0:03:02]} Ng6 {[%emt 0:02:27]} 11. Nf1 {[%emt 0:01:09]} h6 {[%emt 0:02:20] [#] An even fight not without its subleties. C54: Giuoco Piano: 4 c3 Nf6, main lines with 5 d4 and 5 d3.} {Predecessor:} 12. Ng3 $146 Re8 13. d4 Be6 14. Bc2 Qc8 15. Be3 c6 16. Qd2 Qc7 17. Rad1 Rad8 18. Qc1 b5 19. Nf5 Bxf5 20. exf5 Nf8 21. dxe5 Bxe3 22. Qxe3 dxe5 23. Rxd8 Qxd8 24. Nxe5 {1-0 (34) Onischuk,V (2633)-Jones,G (2670) Chess.com INT 2020} 1/2-1/2

[Event "1st Serbian League 2022"]
[Site "Vrnjacka Banja"]
[Date "2022.09.21"]
[Round "2.25"]
[White "Yilmazyerli, Mert"]
[Black "Sarana, Alexey"]
[Result "1/2-1/2"]
[ECO "D02"]
[WhiteElo "2533"]
[BlackElo "2662"]
[Annotator "TA"]
[PlyCount "76"]
[EventDate "2022.09.20"]
[EventType "team-tourn"]
[EventCountry "SRB"]
[SourceTitle "playchess.com"]
[Source "ChessBase"]
[SourceQuality "1"]
[TimeControl "40/5400+30:1800+30"]

{[%evp 9,76,16,25,10,16,0,25,41,24,12,11,6,16,6,21,11,14,8,13,8,8,7,3,0,50,0,0,0,0,0,0,0,0,0,0,-27,-4,-4,-7,-14,-14,-16,-13,-8,0,0,0,0,0,0,0,0,2,2,2,2,2,2,2,2,2,2,7,7,7,6,7,7,7]} 1. Nf3 {[%emt 0:00:36]} d5 {[%emt 0:00:05]} 2. g3 {[%emt 0:00:05]} g6 {[%emt 0:00:04]} 3. Bg2 {[%emt 0:00:23]} Bg7 {[%emt 0:00:05]} 4. d4 {[%emt 0:00:10]} c6 {[%emt 0:00:05]} 5. c4 {[%emt 0:00:10]} dxc4 {[%emt 0:00:19]} 6. O-O {[%emt 0:00:19] D02: 1 d4 d5 2 Nf3 sidelines, including 2...Nf6 3 g3 and 2...Nf6 3 Bf4.} Nf6 {[%emt 0:00:11]} 7. a4 {[%emt 0:00:14]} Be6 {[%emt 0:00:09]} 8. Ng5 {[%emt 0:16:40] [#] White has an edge.} Bd5 $146 {[%emt 0:01:16]} ({Predecessor:} 8... Bd7 9. Na3 h6 10. Nf3 Be6 11. Qc2 Na6 12. Bd2 Bd5 13. Nxc4 O-O 14. Rfd1 e6 {0-1 (86) Salomon,J (2488)-Volkov,S (2627) Sitges 2017}) 9. e4 {[%emt 0:00:08]} h6 {[%emt 0:00:03]} 10. exd5 {[%emt 0:00:12]} hxg5 {[%emt 0:00:04]} 11. dxc6 {[%emt 0:00:07]} Nxc6 {[%emt 0:00:07]} 12. Bxg5 {[%emt 0:04:16]} Nxd4 {[%emt 0:00:26]} 13. Na3 {[%emt 0:00:28]} O-O {[%emt 0:00:46]} 14. Nxc4 {[%emt 0:01:54]} Rc8 {[%emt 0:00:05]} 15. Rc1 {[%emt 0:04:15]} Nd5 {[%emt 0:10:28]} 16. Re1 {[%emt 1:08:33]} Rc5 {[%emt 0:11:19]} (16... Rc7 $11) 17. Ne3 {[%emt 0:00:00]} (17. h4 $14) 17... Rxc1 {[%emt 0:07:42]} 18. Qxc1 {[%emt 0:00:00]} Nxe3 {[%emt 0:00:09]} 19. Bxe3 {[%emt 0:00:00]} Qd7 {[%emt 0:00:20]} 20. Qd1 {[%emt 0:00:00]} Rd8 {[%emt 0:00:34]} 21. h4 {[%emt 0:00:00]} Qf5 {[%emt 0:02:20]} 22. Bxd4 {[%emt 0:00:00]} ({Don't play} 22. Bxb7 Rd7 23. g4 Qa5 $17) 22... Rxd4 {[%emt 0:06:06]} 23. Qf3 {[%emt 0:00:00] The position is equal.} e6 {[%emt 0:00:39]} 24. Qxf5 {[%emt 0:00:00]} gxf5 $11 {[%emt 0:00:10][%mdl 4096] Endgame KRB-KRB} 25. b3 {[%emt 0:00:00]} Rd2 {[%emt 0:09:18]} 26. Kf1 {[%emt 0:00:00]} b6 {[%emt 0:05:42]} 27. Re2 {[%emt 0:00:00]} Rd3 {[%emt 0:00:19]} 28. Re3 {[%emt 0:00:00]} Rd2 {[%emt 0:00:17]} 29. Re2 {[%emt 0:00:00]} Rd7 {[%emt 0:00:35]} 30. Bf3 {[%emt 0:00:00]} Rc7 {[%emt 0:01:13]} 31. Rd2 {[%emt 0:00:00]} Bf8 {[%emt 0:00:05]} 32. Be2 {[%emt 0:00:00]} Bb4 {[%emt 0:45:29]} 33. Rd8+ {[%emt 0:00:00]} Kg7 {[%emt 0:00:00]} 34. Bc4 {[%emt 0:00:00]} Be7 {[%emt 0:00:00]} 35. Rd2 {[%emt 0:00:00]} a5 {[%emt 0:00:00]} 36. Kg2 {[%emt 0:00:00]} Kf6 {[%emt 0:00:00]} 37. f3 {[%emt 0:00:00]} Rc8 {[%emt 0:00:00]} 38. Rd7 {[%emt 0:00:00]} Rd8 {[%emt 0:00:00] A balanced but interesting game.  Weighted Error Value: White=0.04 (flawless) /Black=0.03 (flawless)} 1/2-1/2

[Event "1st Serbian League 2022"]
[Site "Vrnjacka Banja"]
[Date "2022.09.21"]
[Round "2.26"]
[White "Ivic, Velimir"]
[Black "Gokerkan, Cem Kaan"]
[Result "1/2-1/2"]
[ECO "B90"]
[WhiteElo "2553"]
[BlackElo "2465"]
[Annotator "TA"]
[PlyCount "93"]
[EventDate "2022.09.20"]
[EventType "team-tourn"]
[EventCountry "SRB"]
[SourceTitle "playchess.com"]
[Source "ChessBase"]
[SourceQuality "1"]
[TimeControl "40/5400+30:1800+30"]

{[%evp 25,93,58,71,27,30,27,30,34,86,39,53,36,56,45,48,56,53,49,62,60,47,50,94,53,57,55,56,45,46,50,58,61,65,43,84,53,67,60,126,121,204,202,220,151,151,148,127,97,91,89,132,114,100,113,104,111,112,69,83,65,65,65,70,65,66,66,66,66,66,41]} 1. e4 {[%emt 0:00:08]} c5 {[%emt 0:01:54]} 2. Nf3 {[%emt 0:00:07]} d6 {[%emt 0:00:11]} 3. d4 {[%emt 0:00:07]} cxd4 {[%emt 0:00:06]} 4. Nxd4 {[%emt 0:00:06]} Nf6 {[%emt 0:00:04]} 5. Nc3 {[%emt 0:00:06]} a6 {[%emt 0:00:05]} 6. Be3 {[%emt 0:00:32]} e5 {[%emt 0:01:07]} 7. Nb3 {[%emt 0:00:07]} Be6 {[%emt 0:00:11]} 8. f3 {[%emt 0:00:07]} Be7 {[%emt 0:14:02]} 9. Qd2 {[%emt 0:01:29]} O-O {[%emt 0:05:34]} 10. O-O-O {[%emt 0:00:52]} Qc7 {[%emt 0:06:36]} 11. g4 {[%emt 0:03:22][%cal Bg2g4,Bg4g5][%mdl 32]} Rc8 {[%emt 0:07:26]} 12. g5 {[%emt 0:01:33]} Nh5 {[%emt 0:00:47]} 13. Kb1 {[%emt 0:00:34]} Nd7 {[%emt 0:04:07]} 14. Rg1 {[%emt 0:05:30] B90: Sicilian Najdorf: Unusual White 6th moves, 6 Be3 Ng4 and 6 Be3 e5.} b5 {[%emt 0:07:17]} 15. Nd5 {[%emt 0:01:56] Inhibits Nb6.} Bxd5 {[%emt 0:00:05]} 16. exd5 {[%emt 0:00:05] White has an edge.} b4 {[%emt 0:06:04] [#]} (16... Nb6 $14) 17. Rc1 $146 {[%emt 0:06:42]} ({Better is} 17. Rg4 $16) ({Predecessor:} 17. Rg4) 17... a5 $14 {[%emt 0:00:27] ...a4 is the strong threat.} 18. c3 $1 {[%emt 0:00:52]} Qb7 {[%emt 0:04:29]} 19. cxb4 $1 {[%emt 0:01:44]} Rxc1+ {[%emt 0:02:11]} 20. Qxc1 {[%emt 0:07:18] aiming for Qc6.} Qxb4 {[%emt 0:10:50]} 21. Rg4 {[%emt 0:17:37] Prevents Nf4.} Nf4 {[%emt 0:00:02]} 22. Bxf4 {[%emt 0:00:12]} exf4 {[%emt 0:00:01]} 23. Rxf4 {[%emt 0:00:10]} Qb8 {[%emt 0:05:00]} (23... Bxg5 $2 24. Rxb4 Bxc1 25. Rb7 $18) 24. Re4 {[%emt 0:03:46]} Bf8 {[%emt 0:01:58]} 25. Nd4 {[%emt 0:05:03][%cal Bb3d4,Bd4c6,Bc6e7,Be7f5][%mdl 32]} Nc5 {[%emt 0:00:48]} 26. Re3 {[%emt 0:00:18]} g6 {[%emt 0:02:25]} 27. f4 {[%emt 0:00:57]} Qb4 {[%emt 0:05:00]} 28. Bc4 {[%emt 0:01:41]} Bg7 {[%emt 0:01:59]} 29. Nc6 {[%emt 0:06:24]} Qb6 {[%emt 0:00:01]} 30. f5 {[%emt 0:04:37]} gxf5 {[%emt 0:00:24]} 31. Ne7+ {[%emt 0:00:11]} Kf8 {[%emt 0:00:46]} (31... Kh8 $14) 32. Nxf5 $16 {[%emt 0:00:16]} Bh8 {[%emt 0:03:07] [#]} (32... Be5 $16) 33. Re2 $1 $18 {[%emt 0:10:41][%cal Og5g6]} Re8 {[%emt 0:09:04]} 34. Rxe8+ {[%emt 0:16:33]} Kxe8 {[%emt 0:00:01] [#]} 35. Bb5+ $1 {[%emt 0:01:08][%mdl 512]} Kd8 {[%emt 0:00:30]} 36. Qc4 {[%emt 0:00:54]} Nd7 {[%emt 0:01:12]} 37. a4 {[%emt 0:02:07]} Qf2 {[%emt 0:01:26][%csl Gh8][%cal Rf2b2]} 38. Qc2 {[%emt 0:00:26] Chess con chili.} Qe1+ {[%emt 0:00:29]} 39. Ka2 {[%emt 0:00:53] White threatens Qc6 and mate.} Qe5 {[%emt 0:01:02]} 40. Nh6 {[%emt 0:01:41][%csl LRf7,LRh7]} Ke7 {[%emt 0:01:10]} 41. Qe2 {[%emt 0:11:07] White is much more active.} Nb6 {[%emt 0:09:20]} 42. Nf5+ {[%emt 0:01:42]} ({Much worse is} 42. Qf2 Qxd5+ 43. Ka3 (43. b3 Qe5 $11) 43... Qc5+ 44. Qxc5 dxc5 $11) 42... Kd8 $1 {[%emt 0:00:31] [#] White is slightly better.} 43. Nxd6 $1 {[%emt 0:04:09]} Qxd5+ {[%emt 0:05:14]} 44. Nc4 {[%emt 0:15:49]} Nxc4 {[%emt 0:00:37]} 45. Bxc4 {[%emt 0:00:06]} Qxg5 {[%emt 0:01:41]} 46. Bxf7 {[%emt 0:01:04]} Qe5 {[%emt 0:01:00] Prevents Qe8+.} 47. Qxe5 {[%emt 0:01:05] Weighted Error Value: White=0.14 (very precise) /Black=0.13 (very precise)} 1/2-1/2